bitfinex-derivatives/quotes_ETHF0:USTF0_20240830
["timestamp","ask_amount","ask_price","bid_price","bid_amount"]
[1725025911747,5.21226332,2500.6,2499.7,3.2078]
[1725025911948,0.39994,2500.0,2499.7,3.2078]
[1725025912247,3.2078,2500.3,2499.7,3.2078]
[1725025912248,40.8,2500.3,2499.7,3.2078]
[1725025912449,4.25532,2500.5,2499.7,3.2078]
[1725025912746,8.74240033,2500.2,2499.4,3.2078]
[1725025912951,0.40002,2499.5,2499.4,3.2078]
[1725025913138,0.0059952,2499.7,2499.0,3.2078]
[1725025913341,4.57859892,2499.5,2499.0,3.2078]
[1725025913647,0.0059952,2499.7,2499.6,0.4]
[1725025913950,1.99785,2502.4,2499.6,7.2086]
[1725025913951,9.2178,2501.5,2499.6,7.2086]
[1725025914141,9.2178,2501.5,2500.2,3.2078]
[1725025914345,4.50429866,2501.2,2500.7,0.39981]
[1725025914650,3.60753,2501.3,2500.6,3.2078]
[1725025914851,46.81,2501.5,2500.6,3.2078]
[1725025914852,4.26240239,2501.1,2500.6,3.2078]
[1725025915151,0.0059952,2501.1,2500.9,3.2078]
[1725025915450,0.0059952,2501.1,2500.7,3.9984]
[1725025915650,0.0059952,2501.1,2500.9,3.2078]
[1725025915849,0.0059952,2501.1,2501.0,0.39978]
[1725025916151,0.0059952,2501.1,2501.0,4.39818]
[1725025916348,0.0059952,2501.1,2501.0,10.39818]
[1725025916550,0.0059952,2501.1,2501.0,3.9984]
[1725025916859,0.99903,2502.1,2501.0,3.9984]
[1725025916860,3.2078,2502.5,2501.0,6.0]
[1725025917149,3.2078,2502.2,2501.4,3.2078]
[1725025917349,3.2078,2501.8,2501.4,3.2078]
[1725025917742,4.5059286,2501.7,2501.4,3.2078]
[1725025918648,0.39967,2501.7,2501.4,3.2078]
[1725025918849,0.39965,2501.8,2501.4,7.2054]
[1725025919148,4.60011692,2501.6,2501.4,3.2078]
[1725025919546,0.0059952,2501.9,2501.5,3.9976]
[1725025919744,0.0059952,2501.9,2501.3,0.0059952]
[1725025919745,0.0059952,2501.9,2501.7,3.2078]
[1725025920048,0.0059952,2501.9,2501.3,4.0035952]
[1725025920244,0.0059952,2501.9,2501.8,0.39965]
[1725025920756,0.3899,2503.7,2501.8,9.9968]
[1725025920757,3.2078,2503.1,2501.8,9.9968]
[1725025920955,3.2078,2503.1,2502.1,3.2078]
[1725025921145,4.41439917,2502.8,2502.6,0.39952]
[1725025921346,4.41439917,2502.8,2502.4,3.60735]
[1725025921547,4.41439917,2502.8,2501.8,0.99911]
[1725025921548,3.2078,2502.7,2502.0,3.2078]
[1725025921749,4.54266298,2502.7,2501.5,3.2078]
[1725025921949,0.39958,2502.2,2502.1,0.0059952]
[1725025922154,0.0059952,2502.6,2502.1,0.0059952]
[1725025922656,0.0059952,2502.6,2502.1,3.2137952]
[1725025922857,0.0059952,2502.6,2502.5,0.39954]
[1725025923051,0.0059952,2502.6,2502.5,6.39954]
[1725025923246,0.0059952,2502.6,2502.5,10.39554]
[1725025923446,1.35921,2504.2,2503.2,0.39941]
[1725025923447,0.39934,2503.8,2503.2,0.39941]
[1725025923651,44.798,2504.1,2503.3,3.2078]
[1725025923846,44.798,2504.1,2503.1,3.2078]
[1725025923847,49.12432449,2504.1,2503.1,3.2078]
[1725025924160,45.19729,2504.1,2503.6,0.39936]
[1725025924345,45.19729,2504.1,2502.7,0.99876]
[1725025924346,4.32632449,2504.0,2503.5,3.2078]
[1725025924544,4.33231969,2504.0,2503.9,3.60711]
[1725025924747,0.0059952,2504.0,2503.9,9.60711]
[1725025924948,0.0059952,2504.0,2503.9,13.60071]
[1725025925357,40.8,2504.9,2503.9,13.6014]
[1725025925555,0.39904,2505.7,2504.8,0.39915]
[1725025925756,3.997,2506.2,2504.0,4.99105]
[1725025925757,0.39899,2506.0,2504.9,3.2078]
[1725025925958,40.8,2505.9,2505.2,3.2078]
[1725025926148,3.41173359,2506.8,2505.3,3.2078]
[1725025926351,0.39888,2506.6,2505.6,3.2078]
[1725025926550,0.0059952,2506.3,2505.8,0.0059952]
[1725025926949,3.60679,2505.9,2505.8,0.0059952]
[1725025927145,3.2078,2505.9,2504.4,3.60702]
[1725025927357,0.39906,2505.5,2504.4,3.2078]
[1725025927558,7.82455234,2505.9,2504.7,3.2078]
[1725025927754,3.2078,2505.9,2505.0,3.2078]
[1725025927957,0.99724,2506.6,2505.0,3.2078]
[1725025927958,3.2078,2506.5,2505.0,3.2078]
[1725025928150,0.39904,2505.6,2505.5,0.0059952]
[1725025929057,0.39899,2505.9,2505.5,0.0059952]
[1725025929250,0.0059952,2506.0,2505.5,0.0059952]
[1725025929650,0.0059952,2506.0,2505.5,3.9971952]
[1725025929878,0.39904,2505.6,2505.5,0.0059952]
[1725025930156,0.0059952,2506.0,2505.5,0.0059952]
[1725025930357,0.0059952,2506.0,2505.6,7.199]
[1725025930555,0.0059952,2506.0,2505.9,0.39899]
[1725025930750,3.2078,2507.3,2506.6,0.39888]
[1725025930948,3.2078,2507.6,2506.3,3.2078]
[1725025931150,4.18226429,2507.2,2506.3,3.2078]
[1725025931354,4.18226429,2507.2,2505.7,0.7272]
[1725025931355,3.2078,2506.7,2505.9,3.2078]
[1725025931658,3.2078,2507.0,2505.5,3.2078]
[1725025931858,0.00598289,2506.5,2506.0,0.00598289]
[1725025932258,0.39896,2506.1,2506.0,0.00598289]
[1725025932564,0.39895,2506.3,2506.0,0.00598289]
[1725025932757,0.00598289,2506.5,2506.0,0.00598289]
[1725025932952,0.39896,2506.1,2506.0,2.89e-06]
[1725025933161,0.99741,2506.1,2504.9,0.39914]
[1725025933351,0.399,2505.9,2504.7,3.607]
[1725025933552,0.39908,2505.4,2504.8,0.39916]
[1725025933759,5.15124847,2505.8,2504.7,3.2078]
[1725025933948,4.15370847,2505.3,2504.7,3.607]
[1725025934151,40.8,2506.2,2505.0,3.2078]
[1725025934152,44.0078,2506.2,2505.0,3.2078]
[1725025934347,4.15370847,2505.8,2505.4,0.39907]
[1725025934552,44.0078,2506.2,2505.6,0.39903]
[1725025934761,40.8,2506.2,2505.8,0.399]
[1725025934957,40.8,2506.2,2505.3,3.2078]
[1725025935160,0.00598289,2506.5,2505.5,3.2078]
[1725025935358,0.00598289,2506.5,2505.1,0.99778]
[1725025935359,0.00598289,2506.5,2506.0,0.39898]
[1725025935559,40.80598289,2506.5,2506.3,0.39893]
[1725025935762,0.00598289,2506.5,2506.3,3.2078]
[1725025935954,0.00598289,2506.5,2506.4,7.1974]
[1725025936160,0.00598289,2506.5,2506.4,7.59631]
[1725025936358,0.00598289,2506.5,2506.4,4.38851]
[1725025936561,0.00598289,2506.5,2506.4,10.38851]
[1725025936761,0.00598289,2506.5,2506.3,3.2078]
[1725025936962,0.00598289,2506.5,2506.4,3.9896]
[1725025937163,0.00598289,2506.5,2506.4,4.38851]
[1725025937662,0.00598289,2506.5,2506.4,10.38851]
[1725025937867,0.00598289,2506.5,2506.4,3.9896]
[1725025938369,0.00598289,2506.5,2506.4,10.38851]
[1725025938665,0.00598289,2506.5,2506.4,3.9896]
[1725025939160,0.00598289,2506.5,2506.4,4.38851]
[1725025939360,0.00598289,2506.5,2506.0,3.21378289]
[1725025939361,3.99558289,2506.5,2506.0,3.21378289]
[1725025939565,1.39637,2506.1,2506.0,0.00598289]
[1725025939768,0.39896,2506.1,2506.0,0.00598289]
[1725025940064,4.17160313,2506.1,2505.4,3.2078]
[1725025940263,0.00598289,2506.5,2504.5,0.7646]
[1725025940264,0.00598289,2506.5,2505.6,3.2078]
[1725025940662,4.17160313,2506.3,2506.2,0.39895]
[1725025940861,0.00598289,2506.5,2505.7,3.2078]
[1725025940862,1.00326289,2506.5,2505.7,3.2078]
[1725025941060,0.99729,2506.4,2506.0,0.00598289]
[1725025941260,0.99729,2506.4,2505.7,3.2078]
[1725025941261,4.23652707,2506.4,2505.7,3.2078]
[1725025941464,0.00598289,2506.5,2506.2,0.39894]
[1725025941759,0.00598289,2506.5,2505.9,0.39898]
[1725025941760,0.39892,2506.4,2505.9,0.39898]
[1725025941959,0.00598289,2506.5,2505.7,3.2078]
[1725025942176,0.39894,2506.3,2506.2,3.2078]
[1725025942459,0.00598289,2506.5,2506.1,0.39895]
[1725025942659,0.00598289,2506.5,2505.8,0.00598289]
[1725025942660,0.40489289,2506.5,2505.9,3.2078]
[1725025942863,0.00598289,2506.5,2505.9,0.39898]
[1725025943070,1.00324289,2506.5,2505.8,0.00598289]
[1725025943367,0.39899,2506.0,2505.8,0.00598289]
[1725025943667,0.39898,2506.0,2505.8,0.00598289]
[1725025943870,4.44596493,2506.4,2505.9,3.9904]
[1725025944169,0.00598289,2506.5,2506.4,1.3962]
[1725025944170,2.89e-06,2506.5,2506.4,1.3962]
[1725025944564,2.89e-06,2506.5,2506.4,11.785]
[1725025944759,7.5591,2508.3,2506.4,6.3992]
[1725025944959,3.2078,2508.0,2507.3,3.2078]
[1725025945272,4.35441406,2507.9,2507.2,0.39878]
[1725025945568,4.35441406,2507.9,2506.4,1.39649]
[1725025945569,0.3829,2508.8,2507.8,0.39869]
[1725025945759,3.21378289,2508.6,2508.0,0.00598289]
[1725025945964,0.00598289,2508.6,2508.0,0.00598289]
[1725025946162,0.00598289,2508.6,2508.0,3.21378289]
[1725025946361,0.40455289,2508.6,2508.0,3.21378289]
[1725025946666,0.00598289,2508.6,2508.0,0.00598289]
[1725025946872,0.00598289,2508.6,2508.2,0.39862]
[1725025947073,0.00598289,2508.6,2508.0,0.00598289]
[1725025947471,0.00598289,2508.6,2508.0,0.40464289]
[1725025947776,0.00598289,2508.6,2508.4,3.2078]
[1725025947966,0.00598289,2508.6,2508.5,3.9864]
[1725025948270,0.9965,2508.4,2508.0,0.00598289]
[1725025948475,4.16537553,2508.5,2508.0,0.00598289]
[1725025948769,0.39864,2508.1,2508.0,0.00598289]
[1725025949160,15.44523597,2508.1,2506.6,0.7584]
[1725025949365,3.2078,2507.2,2506.5,3.2078]
[1725025949569,3.2078,2507.2,2506.2,0.3992]
[1725025949570,0.39885,2506.8,2506.2,0.3992]
[1725025949764,0.39885,2506.8,2506.1,3.60675]
[1725025949765,3.2078,2507.2,2506.1,3.2078]
[1725025949958,3.2078,2507.2,2506.0,0.3992]
[1725025949959,7.4504474,2506.7,2506.0,3.2078]
[1725025950163,3.2078,2506.5,2506.1,0.00598289]
[1725025950364,3.60671,2506.5,2506.1,0.00598289]
[1725025950565,3.2078,2506.5,2506.1,0.00598289]
[1725025950773,0.00598289,2506.6,2506.5,0.3989]
[1725025950968,3.2078,2507.3,2507.0,0.39881]
[1725025951270,3.2078,2507.3,2507.0,3.9888]
[1725025951465,3.2078,2507.3,2506.9,3.2078]
[1725025951466,3.2078,2507.3,2507.1,3.9888]
[1725025951670,3.2078,2507.3,2506.9,3.2078]
[1725025951671,3.2078,2508.3,2507.2,3.2078]
[1725025951871,0.39867,2508.0,2507.5,3.2078]
[1725025952070,3.2078,2507.8,2507.5,2.89e-06]
[1725025952268,2.39234,2507.6,2507.5,2.89e-06]
[1725025952576,2.39234,2507.6,2506.2,3.2078]
[1725025952577,0.39885,2506.8,2506.2,3.2078]
[1725025952874,0.39885,2506.8,2505.9,3.2078]
[1725025952875,3.2078,2506.6,2505.9,3.2078]
[1725025953063,0.39894,2506.3,2505.9,3.2078]
[1725025953263,4.42600421,2506.5,2505.9,3.2078]
[1725025953479,0.00598289,2506.4,2505.9,3.2078]
[1725025953774,0.00598289,2506.4,2505.9,7.1982]
[1725025953967,0.00598289,2506.4,2506.1,0.39896]
[1725025954276,0.00598289,2506.4,2505.8,0.00598289]
[1725025954475,0.00598289,2506.4,2505.8,3.21378289]
[1725025954682,0.00598289,2506.4,2505.9,0.3992]
[1725025954869,0.00598289,2506.4,2506.3,0.39893]
[1725025955062,3.2078,2507.7,2506.3,3.9896]
[1725025955268,40.8,2507.6,2506.8,0.39884]
[1725025955476,0.39875,2507.5,2506.9,0.39883]
[1725025955680,41.19873,2507.6,2507.0,0.3988]
[1725025955977,41.19873,2507.6,2506.3,0.9973]
[1725025955978,0.39874,2507.5,2506.4,3.2078]
[1725025956167,40.80598289,2507.6,2506.5,0.3989]
[1725025956367,4.42328814,2507.5,2506.4,3.2078]
[1725025956577,0.39879,2507.2,2506.4,3.2078]
[1725025956968,3.2078,2507.4,2506.4,3.2078]
[1725025956969,4.2047,2507.4,2506.4,3.2078]
[1725025957165,0.3988,2507.2,2506.6,0.39887]
[1725025957377,44.01378289,2507.6,2506.4,3.2078]
[1725025957378,4.48334152,2507.3,2506.4,3.2078]
[1725025957574,4.48334152,2507.5,2506.4,3.2078]
[1725025957780,0.00598289,2507.6,2506.7,3.2078]
[1725025958082,0.00598289,2507.6,2507.5,0.39874]
[1725025958578,0.00598289,2507.6,2507.5,10.38674]
[1725025958768,0.00598289,2507.6,2507.5,7.59454]
[1725025958975,0.00598289,2507.6,2507.5,13.59454]
[1725025959673,40.8,2508.3,2507.5,13.1958]
[1725025959976,3.2078,2509.0,2508.2,0.39862]
[1725025960169,3.2078,2509.0,2508.0,3.2078]
[1725025960370,3.60631,2509.0,2508.5,0.39858]
[1725025960575,4.17523363,2508.9,2508.5,0.39857]
[1725025960781,4.17523363,2508.9,2508.6,0.39856]
[1725025961076,3.21378289,2509.0,2507.9,0.99669]
[1725025961077,3.21378289,2509.0,2508.3,3.2078]
[1725025961279,0.00598289,2509.0,2508.9,0.39852]
[1725025961483,0.00598289,2509.0,2508.7,0.00598289]
[1725025961785,1.39487,2508.8,2508.7,0.00598289]
[1725025961974,1.39487,2508.8,2507.6,3.2078]
[1725025961975,0.99642,2508.6,2507.6,3.2078]
[1725025962278,0.99642,2508.6,2507.8,0.39868]
[1725025962279,0.39862,2508.3,2507.8,0.39868]
[1725025962582,0.99642,2508.6,2507.6,3.2078]
[1725025962583,0.39864,2508.2,2507.6,3.60651]
[1725025963181,7.54178585,2508.5,2507.7,0.00598289]
[1725025963571,3.2078,2508.9,2507.7,4.98995289]
[1725025963875,0.9963,2508.9,2508.0,3.2078]
[1725025964086,3.2078,2508.7,2507.7,0.00598289]
[1725025964270,0.99645,2508.6,2507.7,0.00598289]
[1725025964469,0.39865,2508.1,2507.7,0.00598289]
[1725025964671,3.2078,2508.1,2507.7,0.00598289]
[1725025964879,1.39543,2507.8,2507.7,0.00598289]
[1725025965080,0.39869,2507.8,2507.7,0.00598289]
[1725025965281,0.39867,2508.0,2507.7,0.00598289]
[1725025965475,0.39868,2507.9,2507.7,0.00598289]
[1725025965676,3.2078,2508.5,2507.7,0.00598289]
[1725025965873,5.66022155,2507.8,2507.7,0.00598289]
[1725025966171,3.2078,2507.9,2506.7,0.3992]
[1725025966380,3.2078,2507.9,2506.8,3.2078]
[1725025966681,3.60648,2507.9,2507.5,3.60654]
[1725025966882,3.2078,2507.9,2507.5,3.2078]
[1725025967079,0.3987,2507.8,2507.4,0.40473289]
[1725025967287,0.39874,2507.5,2507.4,0.00598289]
[1725025967979,3.2078,2507.6,2507.4,4.39273289]
[1725025968185,3.2078,2507.6,2507.4,0.00598289]
[1725025968379,3.2078,2507.6,2507.4,0.40473289]
[1725025968587,0.39874,2507.5,2507.4,0.00598289]
[1725025968771,0.39873,2507.6,2507.4,0.00598289]
[1725025968977,4.20453,2507.9,2507.6,0.39872]
[1725025968978,3.2078,2507.9,2507.6,0.39872]
[1725025969180,3.2078,2507.9,2507.8,0.39869]
[1725025969377,0.00598289,2508.0,2507.9,0.39868]
[1725025969890,0.00598289,2508.0,2507.9,13.59368]
[1725025970288,1.01233906,2508.9,2508.6,0.39856]
[1725025970584,4.22013906,2509.1,2508.4,3.2078]
[1725025970784,1.01233906,2509.0,2508.4,3.2078]
[1725025970978,1.01233906,2509.0,2508.7,3.2078]
[1725025971182,4.62461195,2509.1,2508.7,7.1934]
[1725025971379,1.01233906,2508.8,2508.6,3.60635]
[1725025971579,1.01233906,2508.8,2508.6,3.2078]
[1725025971777,1.01233906,2508.9,2508.7,3.9864]
[1725025971978,1.41085906,2508.9,2508.6,7.59276]
[1725025972195,1.01233906,2508.9,2508.6,7.1942]
[1725025972379,0.39855,2508.7,2508.6,3.2078]
[1725025972586,1.41087906,2508.8,2508.4,0.39858]
[1725025972781,1.01233906,2508.7,2508.4,0.39858]
[1725025972987,1.01233906,2508.7,2508.1,0.99662]
[1725025973186,1.02427436,2508.8,2508.3,4.20434]
[1725025973385,1.02427436,2508.9,2508.6,0.39856]
[1725025973577,1.02427436,2508.9,2508.3,3.2078]
[1725025973888,1.02427436,2508.9,2508.3,7.1942]
[1725025974387,4.23207436,2508.8,2508.0,3.2078]
[1725025974583,1.02427436,2508.4,2508.0,3.2078]
[1725025974784,0.39864,2508.2,2508.0,3.2078]
[1725025974981,1.02427436,2508.4,2508.0,3.2078]
[1725025975178,1.02427436,2508.3,2508.0,3.2078]
[1725025975586,1.02427436,2508.3,2507.7,0.3992]
[1725025975587,5.01147436,2508.3,2507.7,0.3992]
[1725025975889,0.39869,2507.8,2507.7,3.2078]
[1725025976085,0.39871,2507.7,2507.4,3.61253289]
[1725025976277,0.39871,2507.7,2507.4,0.00598289]
[1725025976278,0.39874,2507.5,2507.4,0.00598289]
[1725025976481,0.00598289,2507.8,2507.4,3.99398289]
[1725025976482,1.02427436,2507.6,2507.4,3.99398289]
[1725025976680,1.03025725,2507.8,2507.5,3.988]
[1725025976886,0.00598289,2507.8,2507.7,0.39871]
[1725025977090,0.00598289,2507.8,2507.7,3.2078]
[1725025977285,0.00598289,2507.8,2507.7,7.1958]
[1725025977487,0.00598289,2507.8,2507.7,4.38671]
[1725025977684,0.00598289,2507.8,2507.7,3.988]
[1725025977879,0.00598289,2507.8,2507.7,7.1958]
[1725025978085,0.00598289,2507.8,2507.7,7.59451]
[1725025978280,0.00598289,2507.8,2507.7,4.38671]
[1725025978688,0.00598289,2507.8,2507.7,13.59451]
[1725025978881,0.00598289,2507.8,2507.7,7.59451]
[1725025979082,0.00598289,2507.8,2507.7,13.59451]
[1725025979295,1.02427436,2508.3,2508.2,0.39863]
[1725025979591,1.02496972,2508.3,2508.0,3.2078]
[1725025979785,1.02496972,2508.4,2508.3,0.39861]
[1725025979983,1.02496972,2508.4,2508.0,7.195]
[1725025979984,1.02496972,2508.5,2508.4,0.3986]
[1725025980182,4.72630859,2508.7,2508.4,3.9864]
[1725025980183,5.75127831,2508.7,2508.4,3.9864]
[1725025980386,1.02496972,2508.6,2508.4,3.60639]
[1725025980692,4.20426,2508.5,2507.6,0.3747]
[1725025980887,1.02498094,2508.2,2507.8,3.2078]
[1725025981082,1.02498094,2508.1,2507.5,0.3814]
[1725025981283,1.02498094,2508.1,2507.7,3.2078]
[1725025981479,1.02498094,2508.1,2508.0,0.39866]
[1725025981698,1.51850859,2508.3,2508.2,0.39863]
[1725025981699,1.02498094,2508.3,2508.2,0.39863]
[1725025981991,1.02498094,2508.6,2508.1,4.18909858]
[1725025982193,2.02467812,2508.9,2508.7,0.39855]
[1725025982194,1.02498094,2508.9,2508.7,0.39855]
[1725025982391,1.02498094,2509.0,2508.7,1.39493]
[1725025982589,1.02498094,2509.1,2508.7,11.38133]
[1725025982984,1.51850859,2509.3,2508.7,11.38133]
[1725025982985,1.02498094,2509.3,2509.2,0.39847]
[1725025983191,1.02498094,2509.5,2509.2,3.2078]
[1725025983387,1.02498094,2509.6,2509.2,3.2078]
[1725025983588,1.02498094,2509.7,2509.6,0.39841]
[1725025983890,1.42335094,2509.8,2509.4,0.40441289]
[1725025984192,1.02498094,2509.7,2509.4,3.99078289]
[1725025984384,1.52449148,2509.9,2509.8,0.39837]
[1725025984593,1.52449148,2509.9,2509.7,0.39838]
[1725025984594,0.00598289,2509.9,2509.7,0.39838]
[1725025984897,0.00598289,2509.9,2509.6,3.2078]
[1725025985088,0.39839,2509.7,2509.6,3.2078]
[1725025985487,1.42336094,2509.8,2509.6,3.2078]
[1725025985795,0.00598289,2509.9,2509.6,3.2078]
[1725025985994,1.03096383,2509.9,2509.6,3.2078]
[1725025986194,1.42336094,2509.8,2509.6,3.2078]
[1725025986493,0.39838,2509.8,2509.6,3.2078]
[1725025986686,1.42933383,2509.9,2509.6,3.2078]
[1725025986883,1.03096383,2509.9,2509.7,0.39839]
[1725025987086,1.03096383,2509.9,2509.6,3.2078]
[1725025987087,0.00598289,2509.9,2509.8,0.39837]
[1725025987591,3.98998289,2509.9,2509.6,3.2078]
[1725025987787,0.39839,2509.7,2509.6,3.2078]
[1725025987995,0.39838,2509.8,2509.6,3.2078]
[1725025988198,0.00598289,2509.9,2509.6,3.2078]
[1725025988496,0.40435289,2509.9,2509.6,3.2078]
[1725025988893,0.00598289,2509.9,2509.6,3.2078]
[1725025989092,0.00598289,2509.9,2509.6,3.6062]
[1725025989296,0.40434289,2509.9,2509.6,3.2078]
[1725025989508,0.00598289,2509.9,2509.6,3.60619]
[1725025989700,0.00598289,2509.9,2509.6,3.2078]
[1725025989903,0.00598289,2509.9,2509.8,0.39837]
[1725025990396,0.00598289,2509.9,2509.8,4.38237]
[1725025990595,0.00598289,2509.9,2509.8,11.37831]
[1725025990796,0.00598289,2509.9,2509.6,3.2078]
[1725025991500,0.00598289,2509.9,2509.7,0.39839]
[1725025991796,0.00598289,2509.9,2509.6,3.2078]
[1725025991997,0.00598289,2509.9,2509.4,0.00598289]
[1725025991998,8.26773227,2509.8,2509.4,0.00598289]
[1725025992203,8.26773227,2509.8,2508.1,4.97504104]
[1725025992204,0.39855,2508.7,2508.6,3.2078]
[1725025992393,0.39855,2508.7,2507.8,0.3598]
[1725025992394,3.2078,2509.0,2508.3,3.2078]
[1725025992588,3.2078,2509.0,2507.8,0.759]
[1725025992589,1.02085463,2509.1,2508.7,0.39854]
[1725025992796,42.21933463,2509.2,2508.8,0.39853]
[1725025992997,0.39847,2509.2,2508.2,0.99657]
[1725025993195,1.02085463,2509.3,2509.0,3.2078]
[1725025993395,1.02683752,2509.4,2508.6,0.99642]
[1725025993599,0.00598289,2509.4,2509.1,3.2078]
[1725025993798,0.39852,2508.9,2508.5,0.39857]
[1725025993993,0.39849,2509.1,2508.4,0.00598289]
[1725025994200,0.39855,2508.7,2508.4,0.00598289]
[1725025994391,3.2078,2509.1,2508.4,0.40457289]
[1725025994392,0.39854,2508.8,2508.4,0.40457289]
[1725025994795,0.39858,2508.5,2508.4,0.00598289]
[1725025994997,4.20403,2509.1,2508.4,0.00598289]
[1725025994998,0.39856,2508.7,2508.4,0.00598289]
[1725025995304,0.39858,2508.5,2508.4,0.00598289]
[1725025995701,15.5857,2508.5,2508.4,2.89e-06]
[1725025995903,21.65559566,2508.5,2508.4,2.89e-06]
[1725025996203,20.12431371,2508.5,2508.4,2.89e-06]
[1725025996500,61.45954877,2508.5,2508.4,2.89e-06]
[1725025996699,58.73200594,2508.5,2508.4,2.89e-06]
[1725025996899,62.256621,2508.5,2508.4,2.89e-06]
[1725025997120,66.2831781,2508.5,2508.4,2.89e-06]
[1725025997300,0.39879,2507.2,2506.8,0.3992]
[1725025997605,0.39884,2506.9,2506.6,0.39888]
[1725025997801,4.20473,2507.4,2506.3,4.20513]
[1725025997802,3.2078,2507.4,2506.3,4.20513]
[1725025998004,4.22883932,2507.4,2506.4,0.99729]
[1725025998197,0.40479289,2507.1,2506.7,0.39885]
[1725025998394,0.00598289,2507.1,2506.6,1.00319289]
[1725025998595,0.00598289,2507.1,2507.0,0.39882]
[1725025998999,4.22883932,2507.8,2507.0,13.59542]
[1725025999306,3.2078,2507.8,2507.4,0.39874]
[1725025999495,3.2078,2507.8,2507.0,3.2078]
[1725025999696,3.2078,2507.8,2507.3,0.39877]
[1725025999898,3.2078,2507.8,2507.5,0.39873]
[1725026000099,3.2078,2507.8,2507.7,0.39871]
[1725026000410,0.00598289,2507.9,2507.7,3.988]
[1725026000599,0.00598289,2507.9,2507.8,0.39869]
[1725026000793,0.00598289,2507.9,2507.3,0.39876]
[1725026000999,1.00271289,2507.9,2507.2,3.2078]
[1725026001195,0.99674,2507.8,2507.2,3.2078]
[1725026001397,0.39873,2507.6,2507.2,3.2078]
[1725026002006,0.39874,2507.5,2507.2,3.2078]
[1725026002222,2.53427188,2507.9,2507.2,3.2078]
[1725026002223,1.02103932,2507.8,2507.4,0.39874]
[1725026002405,0.00598289,2507.9,2507.7,0.3987]
[1725026002611,0.00598289,2507.9,2507.7,3.9872]
[1725026002908,0.00598289,2507.9,2507.8,4.38589]
[1725026003210,1.02103932,2508.5,2508.3,0.39861]
[1725026003410,49.567,2509.4,2508.4,7.1942]
[1725026003411,2.55259831,2508.8,2508.4,7.1942]
[1725026003610,1.02103932,2509.1,2508.4,3.2078]
[1725026003915,1.41949932,2509.3,2508.8,0.39852]
[1725026004211,1.41949932,2509.3,2508.8,0.00598289]
[1725026004212,0.00598289,2509.3,2508.8,0.00598289]
[1725026004602,0.39849,2509.1,2508.8,0.00598289]
[1725026004906,1.02103932,2509.2,2509.0,0.39849]
[1725026005103,1.02103932,2509.2,2509.1,0.39848]
[1725026005304,2.89e-06,2509.3,2509.2,1.39465]
[1725026005510,1.02103932,2510.1,2509.2,4.3557]
[1725026005712,1.02103932,2510.1,2509.5,3.2078]
[1725026006011,1.02103932,2510.1,2509.5,3.60622]
[1725026006317,1.02103932,2510.1,2509.6,0.3984]
[1725026006518,1.02103932,2510.1,2509.5,3.2078]
[1725026006519,1.02485227,2510.1,2509.7,0.39838]
[1725026006808,0.00381295,2510.1,2509.5,3.2078]
[1725026007113,0.00381295,2510.1,2509.8,0.39836]
[1725026007316,0.00381295,2510.1,2509.9,0.39836]
[1725026007615,0.00381295,2510.1,2509.8,0.39836]
[1725026008114,0.00381295,2510.1,2509.9,0.39835]
[1725026008302,0.00381295,2510.1,2509.5,3.2078]
[1725026008303,0.00381295,2510.1,2510.0,3.60614]
[1725026008509,0.00381295,2510.1,2510.0,4.38234]
[1725026008706,0.00381295,2510.1,2510.0,7.59014]
[1725026009010,0.00381295,2510.1,2510.0,13.59014]
[1725026009407,2.55259832,2511.2,2510.0,13.59014]
[1725026009408,1.02103932,2511.1,2510.2,0.99578]
[1725026009615,1.02103932,2511.3,2510.8,0.39821]
[1725026009820,1.02103932,2511.4,2510.4,7.9878]
[1725026010113,4.62696932,2511.4,2510.8,0.39821]
[1725026010308,0.39812,2511.4,2510.9,0.39819]
[1725026010510,1.53155899,2511.7,2510.8,0.00598289]
[1725026010511,1.02103932,2511.6,2510.8,0.00598289]
[1725026010711,0.39813,2511.4,2510.8,0.00598289]
[1725026010913,3.2078,2511.8,2510.8,0.00598289]
[1725026010914,4.22883932,2511.8,2510.8,0.00598289]
[1725026011119,4.20303,2511.6,2510.8,0.40418289]
[1725026011311,4.20303,2511.6,2510.8,0.00598289]
[1725026011312,0.39815,2511.2,2510.8,0.00598289]
[1725026011512,4.26665046,2511.7,2511.3,0.39813]
[1725026011717,0.39806,2511.8,2511.0,3.2078]
[1725026011922,4.22883932,2511.9,2511.0,3.2078]
[1725026012118,0.39808,2511.7,2511.2,0.39814]
[1725026012417,3.2078,2511.9,2511.0,3.2078]
[1725026012618,0.39811,2511.5,2511.0,3.2078]
[1725026012923,3.2078,2511.6,2511.0,3.2078]
[1725026013221,0.39817,2511.1,2511.0,3.2078]
[1725026013427,0.39814,2511.4,2511.0,3.2078]
[1725026013720,8.21123932,2511.6,2510.9,0.39819]
[1725026013721,4.22883932,2511.6,2510.9,0.39819]
[1725026013916,3.2078,2511.6,2511.0,3.2078]
[1725026014115,3.2078,2511.6,2511.1,0.39817]
[1725026014316,3.2078,2511.6,2510.8,0.00598289]
[1725026014518,0.3982,2510.9,2510.8,0.00598289]
[1725026014725,4.3806,2510.9,2510.8,0.00598289]
[1725026015222,0.3982,2510.9,2510.8,0.00598289]
[1725026015520,0.39822,2510.8,2510.3,0.39828]
[1725026015819,1.02103932,2511.2,2510.0,3.6062]
[1725026016018,0.39816,2511.2,2510.7,0.39822]
[1725026016314,0.39816,2511.2,2510.8,0.39821]
[1725026016515,0.39819,2511.0,2510.7,0.00598289]
[1725026016718,3.21378289,2511.3,2510.7,0.00598289]
[1725026016719,3.2078,2511.2,2510.7,0.00598289]
[1725026016921,8.05466145,2511.2,2510.7,0.00598289]
[1725026017119,0.00598289,2511.3,2510.7,3.21378289]
[1725026017324,0.39821,2510.8,2510.7,0.00598289]
[1725026017820,3.2078,2511.0,2510.7,0.00598289]
[1725026018421,0.39821,2510.8,2510.7,0.00598289]
[1725026018624,0.39821,2510.9,2510.7,0.00598289]
[1725026018824,3.21378289,2511.3,2510.7,0.00598289]
[1725026019022,0.3982,2510.9,2510.7,0.00598289]
[1725026019415,3.9824,2510.8,2510.7,0.00598289]